bitfinex-derivatives/quotes_ETHF0:USTF0_20241008
["timestamp","ask_amount","ask_price","bid_price","bid_amount"]
[1728357774627,0.4007,2441.5,2441.4,0.40966]
[1728357775028,0.81034,2441.5,2441.4,0.40966]
[1728357775530,0.81034,2441.5,2441.1,0.3974]
[1728357775724,0.40966,2441.4,2441.3,0.40967]
[1728357775926,0.81036,2441.5,2441.3,0.40967]
[1728357776626,0.4007,2441.5,2441.1,0.3974]
[1728357776828,0.40968,2441.3,2441.1,0.8071]
[1728357777825,0.81137,2441.4,2441.2,0.40969]
[1728357778026,0.80419,2441.3,2441.1,0.4097]
[1728357778228,0.3945,2441.3,2441.2,0.40969]
[1728357781545,0.80419,2441.3,2441.1,0.4097]
[1728357782030,0.4097,2441.2,2441.0,0.40971]
[1728357782237,0.3945,2441.3,2441.1,0.4097]
[1728357782238,0.80419,2441.3,2441.1,0.4097]
[1728357782939,0.80419,2441.3,2440.8,3.2078]
[1728357783136,0.3945,2441.3,2441.2,0.40969]
[1728357784143,0.80417,2441.3,2441.2,0.40969]
[1728357784845,0.40972,2441.1,2441.0,0.40972]
[1728357785040,3.60972,2441.1,2440.9,0.40973]
[1728357785440,3.60972,2441.1,2440.8,0.8355]
[1728357785642,3.60972,2441.1,2441.0,0.40972]
[1728357785872,3.60972,2441.1,2440.8,0.8355]
[1728357786035,3.60972,2441.1,2440.9,0.40973]
[1728357786432,3.60972,2441.1,2441.0,0.40972]
[1728357787136,3.60972,2441.1,2440.9,0.40973]
[1728357787441,3.60972,2441.1,2440.8,0.8355]
[1728357787442,3.2,2441.1,2440.8,0.8355]
[1728357787642,3.60971,2441.1,2441.0,0.40972]
[1728357787837,3.60971,2441.1,2440.8,0.8355]
[1728357788033,3.60974,2440.9,2440.8,0.8355]
[1728357788338,3.2,2440.9,2440.3,0.11]
[1728357788544,4.03385,2440.9,2440.7,0.40976]
[1728357789044,3.6241,2440.9,2440.7,0.40976]
[1728357789242,4.03386,2440.9,2440.7,0.40976]
[1728357789438,4.0968,2440.8,2440.2,0.095]
[1728357789638,0.40986,2440.2,2440.0,1.22169]
[1728357789940,0.40988,2440.1,2440.0,0.8118]
[1728357790142,0.80027,2440.2,2440.0,0.8118]
[1728357790553,3.60988,2440.1,2440.0,0.4147]
[1728357791143,3.2,2440.1,2440.0,0.4147]
[1728357791644,3.60988,2440.1,2440.0,0.4147]
[1728357792050,3.2,2440.1,2440.0,0.4147]
[1728357792551,3.60988,2440.1,2440.0,0.4147]
[1728357794053,3.60988,2440.1,2439.8,0.40992]
[1728357794244,3.2,2440.1,2439.8,0.40992]
[1728357794746,3.60989,2440.1,2439.9,0.40991]
[1728357795048,0.4099,2440.0,2439.8,0.40992]
[1728357795643,3.2,2439.9,2439.8,0.40992]
[1728357796947,3.2,2440.1,2439.7,0.8108]
[1728357797253,3.60989,2440.1,2439.8,0.40991]
[1728357797553,3.60989,2440.1,2439.9,0.40991]
[1728357797954,3.60989,2440.1,2439.7,0.8108]
[1728357797955,0.40989,2440.0,2439.8,0.40992]
[1728357798546,1.48,2439.9,2439.8,0.40992]
[1728357801742,1.88991,2439.9,2439.8,0.40992]
[1728357801947,1.48,2439.9,2439.8,0.40992]
[1728357804055,1.88991,2439.9,2439.8,0.40992]
[1728357806959,0.40993,2439.8,2439.7,1.22073]
[1728357807155,1.48,2439.9,2439.7,1.22073]
[1728357807461,0.40993,2439.8,2439.7,0.8108]
[1728357808452,0.40993,2439.8,2439.7,1.22074]
[1728357809063,0.40993,2439.8,2439.7,0.8108]
[1728357810356,0.40993,2439.8,2439.7,1.22074]
[1728357811652,1.48,2439.9,2439.7,0.8108]
[1728357811851,0.40993,2439.8,2439.7,1.22073]
[1728357816463,0.40993,2439.8,2439.7,0.8108]
[1728357817866,0.40993,2439.8,2439.7,1.22074]
[1728357818461,0.40993,2439.8,2439.7,0.8108]
[1728357819355,0.40995,2439.7,2439.6,0.40996]
[1728357819758,0.40993,2439.8,2439.7,0.40994]
[1728357819960,0.40995,2439.7,2439.6,0.40996]
[1728357820166,1.88995,2439.7,2439.6,0.40996]
[1728357820460,1.48,2439.7,2439.4,3.6315]
[1728357820664,1.88998,2439.5,2439.4,3.6315]
[1728357822361,1.88998,2439.5,2439.4,0.4237]
[1728357822362,5.09778,2439.5,2439.4,0.4237]
[1728357822562,0.40999,2439.4,2439.3,0.4103]
[1728357826457,0.40998,2439.5,2439.3,0.8203]
[1728357826666,1.88998,2439.5,2439.3,0.8203]
[1728357828164,1.88999,2439.4,2439.3,0.4103]
[1728357830468,1.88999,2439.4,2439.2,0.41002]
[1728357831472,1.88999,2439.4,2439.2,0.41003]
[1728357831675,1.88999,2439.4,2439.2,0.41001]
[1728357831971,1.48,2439.4,2439.3,0.41001]
[1728357832168,1.88999,2439.4,2439.3,0.41001]
[1728357832473,1.48,2439.4,2439.3,0.41001]
[1728357832674,1.88999,2439.4,2439.3,0.41001]
[1728357833673,1.48,2439.4,2439.3,0.41001]
[1728357833872,1.88998,2439.5,2439.3,0.41001]
[1728357834076,1.88998,2439.5,2439.4,0.4152]
[1728357834664,0.40995,2439.7,2439.4,0.4152]
[1728357834888,0.40995,2439.7,2439.5,0.40997]
[1728357835169,1.88994,2439.7,2439.6,0.3921]
[1728357843179,0.40994,2439.7,2439.6,0.3921]
[1728357843384,1.88994,2439.7,2439.6,0.80206]
[1728357844976,1.48,2439.7,2439.6,0.80206]
[1728357845175,0.15176263,2440.2,2439.6,0.80206]
[1728357845176,0.40986,2440.3,2440.1,0.40987]
[1728357845528,0.40984,2440.4,2440.2,0.3999]
[1728357845670,0.40983,2440.4,2440.3,0.8095]
[1728357847619,3.35680648,2440.8,2440.3,0.8095]
[1728357847785,1.48,2440.7,2440.5,0.4098]
[1728357847985,3.61757,2440.8,2440.5,0.4098]
[1728357848281,5.09757,2440.8,2440.6,0.4102]
[1728357848482,4.6878,2440.8,2440.6,0.4102]
[1728357848711,4.6878,2440.8,2440.6,0.81998]
[1728357848884,4.6878,2440.8,2440.7,0.40978]
[1728357849682,4.6878,2440.8,2440.6,0.4102]
[1728357849883,4.6878,2440.8,2440.6,0.81998]
[1728357850090,5.09756,2440.8,2440.6,0.81998]
[1728357850288,4.6878,2440.8,2440.6,0.4102]
[1728357850485,3.2078,2440.8,2440.6,0.4102]
[1728357850686,3.2078,2440.8,2440.6,0.81998]
[1728357851192,3.61756,2440.8,2440.6,0.81998]
[1728357851394,3.61756,2440.8,2440.6,0.4102]
[1728357851590,3.61756,2440.8,2440.6,0.81999]
[1728357853593,3.2078,2440.8,2440.6,0.81999]
[1728357853998,3.2078,2440.8,2440.7,0.40978]
[1728357855296,3.2078,2440.8,2440.6,0.4102]
[1728357855496,3.61756,2440.8,2440.6,0.81998]
[1728357856095,3.2078,2440.8,2440.6,0.81998]
[1728357856910,3.61756,2440.8,2440.6,0.81998]
[1728357858298,3.2078,2440.8,2440.6,0.81998]
[1728357858700,3.2078,2440.8,2440.7,0.418]
[1728357858895,3.61756,2440.8,2440.7,0.418]
[1728357859504,3.61756,2440.8,2440.7,0.82778]
[1728357859505,3.2078,2440.8,2440.7,0.82778]
[1728357859910,3.2078,2440.8,2440.7,0.418]
[1728357860605,3.61756,2440.8,2440.7,0.418]
[1728357860802,3.2078,2440.8,2440.7,0.418]
[1728357861011,3.61756,2440.8,2440.7,0.418]
[1728357861602,3.2078,2440.8,2440.6,0.4102]
[1728357861803,4.44697,2440.8,2440.6,0.81999]
[1728357862109,4.0372,2440.8,2440.7,0.40978]
[1728357862310,3.61756,2440.8,2440.6,0.81998]
[1728357866807,3.61756,2440.8,2440.6,0.4102]
[1728357867005,3.61756,2440.8,2440.7,0.40978]
[1728357867610,3.61756,2440.8,2440.6,0.81998]
[1728357867821,3.61756,2440.8,2440.7,0.40978]
[1728357868118,3.61756,2440.8,2440.6,0.81998]
[1728357869925,3.61756,2440.8,2440.7,0.40978]
[1728357870420,5.09756,2440.8,2440.6,0.4102]
[1728357870613,0.4098,2440.6,2440.4,0.82971]
[1728357870813,1.48,2440.5,2440.4,0.82971]
[1728357871019,1.8858,2440.5,2440.4,0.82971]
[1728357871215,2.29561,2440.5,2440.4,0.82971]
[1728357871513,1.8858,2440.5,2440.4,0.4199]
[1728357871717,1.8858,2440.5,2440.3,0.4233]
[1728357871911,1.88983,2440.4,2440.3,0.83313]
[1728357874926,1.88983,2440.4,2440.3,0.83314]
[1728357875222,0.40989,2440.1,2440.0,0.40989]
[1728357875523,3.61769,2440.1,2440.0,0.40989]
[1728357875719,3.61768,2440.1,2440.0,0.40989]
[1728357876112,0.40988,2440.1,2440.0,0.40989]
[1728357876317,1.88987,2440.2,2440.1,0.40988]
[1728357876927,0.40987,2440.2,2440.1,0.40988]
[1728357877316,2.2806,2440.3,2440.1,0.40988]
[1728357877535,0.40986,2440.2,2440.1,0.40988]
[1728357878521,0.40986,2440.2,2439.8,0.8208]
[1728357879221,0.40986,2440.2,2440.0,0.40988]
[1728357880626,0.40986,2440.2,2440.1,0.40988]
[1728357881527,0.40986,2440.2,2439.8,0.8208]
[1728357881722,0.40986,2440.2,2440.0,0.40988]
[1728357885122,2.2806,2440.3,2439.8,0.8208]
[1728357885321,0.40986,2440.2,2440.1,0.40987]
[1728357887928,0.40986,2440.2,2439.8,0.8208]
[1728357888232,0.40986,2440.2,2440.0,0.40988]
[1728357888629,0.40986,2440.2,2440.1,0.3898]
[1728357889940,1.48,2440.3,2440.1,0.3898]
[1728357890135,1.88986,2440.3,2440.2,0.4006]
[1728357890335,1.88986,2440.3,2440.2,0.8031]
[1728357892829,0.40983,2440.4,2440.3,0.40984]
[1728357893129,1.48,2440.5,2440.4,0.40983]
[1728357893332,1.88981,2440.5,2440.4,0.40983]
[1728357893526,1.48,2440.5,2440.4,0.40983]
[1728357894132,1.88981,2440.5,2440.4,0.40983]
[1728357895433,1.88981,2440.5,2440.2,0.8031]
[1728357895629,1.88981,2440.5,2440.3,0.40983]
[1728357896051,1.88983,2440.4,2440.3,0.40983]
[1728357896635,1.48,2440.4,2440.3,0.40983]
[1728357903235,1.88983,2440.4,2440.3,0.40983]
[1728357903441,1.48,2440.6,2440.2,0.8031]
[1728357903635,0.40981,2440.5,2440.4,0.40982]
[1728357903938,1.48,2440.6,2440.4,0.40982]
[1728357903939,1.8898,2440.6,2440.4,0.40982]
[1728357905145,5.0976,2440.6,2440.4,0.40982]
[1728357908337,0.40981,2440.5,2440.4,0.40982]
[1728357908746,0.40984,2440.3,2440.2,1.21295]
[1728357909344,1.48,2440.4,2440.2,1.21295]
[1728357909646,1.88983,2440.4,2440.2,1.21295]
[1728357910844,1.48,2440.4,2440.3,0.40984]
[1728357912343,1.88983,2440.4,2440.3,0.40984]
[1728357912948,1.48,2440.4,2440.3,0.40984]
[1728357913951,1.88983,2440.4,2440.3,0.17101096]
[1728357914856,1.48,2440.4,2440.3,0.17101096]
[1728357915043,1.25358839,2440.5,2440.3,0.17101096]
[1728357915444,0.84376839,2440.5,2440.3,0.17101096]
[1728357915643,0.40983,2440.4,2440.3,0.17101096]
[1728357915845,0.40983,2440.4,2440.2,1.21295]
[1728357916147,0.40984,2440.3,2440.2,1.21295]
[1728357916753,0.40983,2440.4,2440.2,1.21295]
[1728357919041,4.05243493,2440.5,2440.2,0.8031]
[1728357919042,0.40984,2440.3,2440.2,0.8031]
[1728357919946,1.88984,2440.4,2440.2,1.21296]
[1728357920151,1.88984,2440.4,2440.3,0.40984]
[1728357920152,1.48,2440.4,2440.3,0.40984]
[1728357920543,5.09762,2440.5,2440.3,0.40984]
[1728357920743,4.6878,2440.5,2440.3,0.40984]
[1728357921247,5.09762,2440.5,2440.3,0.40984]
[1728357921646,4.6878,2440.5,2440.3,0.40984]
[1728357921849,0.40983,2440.4,2440.3,0.40984]
[1728357922049,4.6878,2440.5,2440.3,0.40984]
[1728357922285,5.09762,2440.5,2440.3,0.40984]
[1728357922654,4.6878,2440.5,2440.3,0.40984]
[1728357922855,0.40983,2440.4,2440.3,0.40984]
[1728357923047,5.09762,2440.5,2440.3,0.40984]
[1728357923751,0.40983,2440.4,2440.2,1.21294]
[1728357924849,0.40983,2440.4,2440.2,0.8031]
[1728357925058,1.25479425,2440.4,2440.3,0.40984]
[1728357925249,1.25479425,2440.4,2440.3,0.17294095]
[1728357925651,1.25479425,2440.4,2440.2,1.21295]
[1728357926053,0.84496425,2440.4,2440.2,0.8031]
[1728357926366,0.40978,2440.7,2440.5,0.4098]
[1728357926560,1.25461988,2440.7,2440.6,0.7771]
[1728357927052,2.73461988,2440.7,2440.6,0.7771]
[1728357928764,1.25461988,2440.7,2440.6,0.7771]
[1728357929059,1.25461988,2440.7,2440.6,1.1965]
[1728357929262,2.73461988,2440.7,2440.6,1.1965]
[1728357932261,2.32483988,2440.7,2440.4,0.40982]
[1728357932458,0.40979,2440.6,2440.4,0.81152]
[1728357933063,0.40984,2440.4,2440.2,1.20855]
[1728357933368,0.40984,2440.4,2440.2,1.61025]
[1728357934570,1.24782,2440.5,2440.3,0.40983]
[1728357935583,0.40983,2440.4,2440.2,1.2004]
[1728357935906,0.40984,2440.4,2440.2,1.20075]
[1728357937066,0.40984,2440.4,2440.2,0.7909]
[1728357937267,0.40984,2440.4,2440.3,0.40984]
[1728357937656,4.0458,2440.5,2440.2,0.7909]
[1728357937864,0.40984,2440.4,2440.2,1.20075]
[1728357938471,0.40984,2440.4,2440.3,0.40984]
[1728357939665,4.0458,2440.5,2440.3,0.40984]
[1728357939868,4.45562,2440.5,2440.3,0.40984]
[1728357940111,1.24782,2440.5,2440.3,0.40984]
[1728357940372,0.40983,2440.4,2440.3,0.40984]
[1728357940761,4.0458,2440.5,2440.3,0.40984]
[1728357940962,4.45562,2440.5,2440.3,0.40983]
[1728357941464,4.45562,2440.5,2440.2,0.7909]
[1728357941769,4.45562,2440.5,2440.4,0.40983]
[1728357941770,4.45561,2440.5,2440.4,0.40983]
[1728357942170,8.55321,2440.5,2440.4,0.40983]
[1728357942662,8.1434,2440.5,2440.2,0.7909]
[1728357942867,4.45562,2440.5,2440.3,0.40984]
[1728357943266,4.45562,2440.5,2440.4,0.40983]
[1728357943461,4.45562,2440.5,2440.2,0.7909]
[1728357943666,4.45562,2440.5,2440.4,0.40983]
[1728357943866,4.45561,2440.5,2440.4,0.40983]
[1728357944062,8.1434,2440.5,2440.4,0.40983]
[1728357944467,4.0458,2440.5,2440.4,0.40983]
[1728357944673,8.1434,2440.5,2440.2,0.7909]
[1728357944871,0.40984,2440.3,2440.2,1.20075]
[1728357945375,1.48,2440.4,2440.2,0.7909]
[1728357945578,0.40984,2440.3,2440.0,0.4001]
[1728357945769,0.40984,2440.3,2440.2,0.40986]
[1728357946382,1.48,2440.4,2440.0,1.1986]
[1728357946567,1.88983,2440.4,2440.0,1.1986]
[1728357946875,1.88983,2440.4,2440.2,0.40985]
[1728357947081,1.88983,2440.4,2440.3,0.40984]
[1728357947378,2.72146722,2440.4,2440.3,0.40984]
[1728357947777,2.31163722,2440.4,2440.3,0.40984]
[1728357948372,2.72146722,2440.4,2440.2,0.40985]
[1728357948972,2.31163722,2440.4,2440.3,0.40984]
[1728357949380,2.72146722,2440.4,2440.2,0.40985]
[1728357949975,2.72146722,2440.4,2440.3,0.40984]
[1728357950369,2.72146722,2440.4,2440.0,1.1986]
[1728357950569,2.72146722,2440.4,2440.2,0.40985]
[1728357951073,2.31163722,2440.4,2440.0,1.1986]
[1728357951274,2.31163722,2440.4,2440.0,0.7985]
[1728357951275,1.88988,2440.1,2440.0,0.7985]
[1728357951483,1.88988,2440.1,2439.9,0.4099]
[1728357951688,0.8206,2440.0,2439.9,0.4099]
[1728357951879,2.3006,2440.0,2439.9,0.4099]
[1728357952177,2.3006,2440.0,2439.6,1.2066]
[1728357952475,2.3006,2440.0,2439.9,0.40991]
[1728357952476,2.7105,2440.0,2439.9,0.40991]
[1728357952867,2.3006,2440.0,2439.9,0.40991]
[1728357954172,2.71049,2440.0,2439.9,0.40991]
[1728357954987,0.83163722,2440.1,2440.0,0.40989]
[1728357955296,0.40986,2440.3,2440.2,0.40985]
[1728357955478,1.48,2440.6,2440.0,1.48]
[1728357955479,0.40983,2440.4,2440.3,0.40983]
[1728357955677,0.40983,2440.4,2440.1,1.2471]
[1728357955678,1.48,2440.4,2440.1,1.2471]
[1728357955878,1.88983,2440.4,2440.3,0.40984]
[1728357956078,1.48,2440.4,2440.3,0.40984]
[1728357958884,2.2895,2440.6,2440.4,0.40982]
[1728357959084,2.2895,2440.6,2440.5,0.404]
[1728357959579,6.3871,2440.6,2440.5,0.404]
[1728357962381,7.21828307,2440.6,2440.5,0.172371]
[1728357963088,7.21828307,2440.6,2440.1,0.8217]
[1728357963289,1.88984,2440.4,2440.2,0.40986]
[1728357963989,0.4076,2440.3,2440.2,0.40986]
[1728357965487,1.48,2440.4,2440.1,0.8217]
[1728357965683,1.48,2440.4,2440.2,0.4134]
[1728357965888,1.48,2440.4,2440.2,0.82325]
[1728357965889,1.88983,2440.4,2440.2,0.82325]
[1728357967091,1.48,2440.4,2440.3,0.40984]
[1728357967288,0.40984,2440.3,2440.1,0.8217]
[1728357967482,0.83118307,2440.3,2440.1,0.8217]
[1728357967684,0.40986,2440.2,2440.1,0.8217]
[1728357969689,0.81536,2440.2,2440.1,0.8217]
[1728357974192,1.48,2440.5,2440.1,0.8217]
[1728357974494,1.88982,2440.5,2440.1,0.8217]
[1728357974800,1.88982,2440.5,2440.2,0.40985]
[1728357975290,1.48,2440.5,2440.3,0.3887]
[1728357975496,0.40983,2440.4,2440.3,0.3887]
[1728357975993,1.88982,2440.5,2440.3,0.3887]
[1728357976395,1.88982,2440.5,2440.3,0.79854]
[1728357977289,1.48,2440.5,2440.3,0.3887]
[1728357977492,0.40983,2440.4,2440.3,0.16762049]
[1728357977996,0.40986,2440.2,2440.1,0.8217]
[1728357978198,1.88986,2440.2,2440.1,0.8217]
[1728357980794,1.88986,2440.2,2440.1,1.2096]
[1728357984398,2.72102801,2440.2,2440.1,1.2096]
[1728357985789,1.88986,2440.2,2440.1,1.2096]
[1728357991399,1.48,2440.2,2440.1,1.2096]
[1728357991599,1.48,2440.2,2440.1,1.61948]
[1728357992900,4.03555,2440.3,2440.1,1.61948]
[1728357993401,3.6257,2440.3,2440.2,0.40986]
[1728357993599,4.03554,2440.3,2440.1,1.61947]
[1728357995499,4.03554,2440.3,2440.1,1.2096]
[1728357996407,3.6257,2440.3,2440.1,1.2096]
[1728357996598,0.40986,2440.2,2440.1,1.2096]
[1728357998204,5.09766,2440.2,2440.1,1.2096]
[1728357999809,5.92968017,2440.2,2440.1,0.52683225]
[1728358000108,6.73748017,2440.2,2440.1,0.3879]
[1728358001001,6.73748017,2440.2,2439.6,0.095]
[1728358001002,6.32762017,2440.2,2439.6,0.095]
[1728358001195,1.24191017,2440.1,2439.7,0.4055]
[1728358001702,0.40992,2439.9,2439.7,0.4055]
[1728358001901,0.83202017,2440.1,2439.7,0.4055]
[1728358001902,2.3141,2440.0,2439.7,0.4055]
[1728358002098,1.9042,2440.0,2439.7,0.4055]
[1728358002302,0.40991,2439.9,2439.7,0.4055]
[1728358002501,2.3141,2440.0,2439.7,0.4055]
[1728358002702,1.9042,2440.0,2439.7,0.4055]
[1728358002902,0.40991,2439.9,2439.7,0.4055]
[1728358003204,0.40991,2439.9,2439.8,0.8365]
[1728358004104,2.3141,2440.0,2439.8,0.8365]
[1728358004407,1.9042,2440.0,2439.8,0.8365]
[1728358005409,0.40991,2439.9,2439.8,0.8365]
[1728358010207,1.48,2439.9,2439.7,0.4055]
[1728358010412,3.61773,2439.8,2439.7,0.4055]
[1728358010754,3.61773,2439.8,2439.5,0.8351]
[1728358010755,0.40996,2439.6,2439.5,0.4273]
[1728358011007,0.40998,2439.5,2439.4,0.4037]
[1728358011306,5.09778,2439.5,2439.4,0.4037]
[1728358012104,8.787,2439.5,2439.1,0.4273]
[1728358012306,4.6878,2439.2,2439.0,0.8111]
[1728358012610,2.31314,2439.1,2439.0,0.8111]
[1728358013317,2.31314,2439.1,2439.0,0.4033]
[1728358013611,0.41009,2438.8,2438.7,0.4019]
[1728358013814,3.61789,2438.8,2438.7,0.4019]
[1728358014213,0.41013,2438.6,2438.5,0.4033]
[1728358014515,1.89013,2438.6,2438.5,0.4033]
[1728358016612,0.41016,2438.4,2438.3,0.8222]
[1728358016813,5.09796,2438.4,2438.3,0.8222]
[1728358017106,0.41023,2438.0,2437.9,0.095]
[1728358017313,1.89023,2438.0,2437.9,0.4203]
[1728358017504,0.41028,2437.7,2437.6,0.4145]
[1728358017707,1.89028,2437.7,2437.6,0.4145]
[1728358018108,1.89028,2437.7,2437.2,3.61816]
[1728358018109,0.4103,2437.6,2437.2,3.61816]
[1728358018318,1.48,2437.7,2437.3,0.8378]
[1728358018616,1.89028,2437.7,2437.3,1.24813]
[1728358018813,1.48,2437.7,2437.4,0.81242]
[1728358019011,1.89028,2437.7,2437.4,0.81242]
[1728358019412,0.4103,2437.6,2437.4,0.4021]
[1728358019715,1.89029,2437.7,2437.4,0.4021]
[1728358020313,1.89029,2437.7,2437.4,0.81242]
[1728358021525,1.48,2437.7,2437.5,0.41031]
[1728358021821,0.41024,2438.0,2437.7,0.41028]
[1728358022118,0.41024,2438.0,2437.8,0.4266]
[1728358022356,0.41024,2438.0,2437.8,0.8402]
[1728358023112,1.48,2438.1,2437.8,0.8402]
[1728358023313,0.41022,2438.1,2437.9,0.4164]
[1728358023519,0.41022,2438.1,2437.9,0.82665]
[1728358023723,1.89021,2438.2,2437.9,0.82665]
[1728358027562,3.2078,2438.5,2437.9,0.4164]
[1728358027717,3.2078,2438.5,2438.0,0.41022]
[1728358027718,1.89019,2438.3,2438.0,0.41022]
[1728358028322,0.41017,2438.4,2438.1,0.4102]
[1728358028519,3.2078,2438.5,2438.2,0.3892]
[1728358028719,0.41017,2438.4,2438.2,0.3892]
[1728358029122,0.41017,2438.4,2438.3,0.4116]
[1728358030819,5.09796,2438.5,2438.3,0.4116]
[1728358031026,0.41016,2438.4,2438.3,0.4116]
[1728358033520,4.6878,2438.5,2438.2,0.3892]
[1728358033729,0.41021,2438.1,2438.0,0.4131]
[1728358034019,0.41025,2437.9,2437.8,0.4166]
[1728358034426,1.48,2437.9,2437.7,0.4131]
[1728358034629,4.64081,2438.2,2437.7,0.4131]
[1728358034630,1.89026,2437.8,2437.7,0.4131]
[1728358036324,1.48,2437.8,2437.7,4.5155]
[1728358036524,0.41026,2437.9,2437.7,4.92577]
[1728358036731,3.5991,2438.0,2437.7,0.4131]
[1728358036938,0.41026,2437.8,2437.7,0.4131]
[1728358037116,0.41025,2437.9,2437.7,0.4131]
[1728358037321,3.61023,2438.0,2437.9,0.41025]
[1728358038630,6.8153,2438.2,2437.9,0.41024]
[1728358038930,0.41023,2438.1,2437.9,0.41024]
[1728358039228,0.41023,2438.1,2438.0,0.3961]
[1728358045832,7.84081,2438.2,2437.7,0.41027]
[1728358046040,0.41025,2437.9,2437.7,0.82407]
[1728358046330,4.002,2438.0,2437.7,0.82407]
[1728358046331,4.41224,2438.0,2437.7,0.82407]
[1728358046927,4.41224,2438.0,2437.7,0.4138]
[1728358046928,0.41026,2437.8,2437.7,0.4138]
[1728358047826,0.41026,2437.9,2437.7,4.92647]
[1728358048034,0.41026,2437.9,2437.7,0.82407]
[1728358048333,4.002,2438.0,2437.7,0.82407]
[1728358048334,4.002,2438.0,2437.7,0.4138]
[1728358048636,0.81814,2438.0,2437.8,0.41025]
[1728358048938,0.4079,2438.0,2437.8,0.41025]
[1728358049533,0.81814,2438.0,2437.8,0.41025]
[1728358050432,0.81814,2438.0,2437.7,0.4138]
[1728358050631,0.81814,2438.0,2437.8,0.41026]
[1728358050826,0.81814,2438.0,2437.9,0.41025]
[1728358053466,0.81814,2438.0,2437.8,0.41025]
[1728358054034,0.81814,2438.0,2437.9,0.41025]
[1728358054428,3.6153,2438.2,2438.0,0.41023]
[1728358054734,3.6336,2438.2,2438.1,0.4114]
[1728358054942,4.0438,2438.2,2438.1,0.4114]
[1728358057041,3.6336,2438.2,2438.1,0.82161]
[1728358057443,3.2078,2438.2,2438.1,0.82161]
[1728358057653,3.618,2438.2,2438.1,0.82161]
[1728358057940,3.2078,2438.2,2438.1,0.82161]
[1728358058939,3.618,2438.2,2438.1,0.82161]
[1728358059835,3.2078,2438.2,2438.1,0.82161]
[1728358060041,2.27597,2438.4,2438.2,0.4102]
[1728358060346,3.61795,2438.5,2438.4,0.41016]
[1728358060844,0.41016,2438.4,2438.2,0.8135]
[1728358061036,0.41016,2438.4,2438.3,0.41018]
[1728358061638,0.41018,2438.3,2438.2,1.22369]
[1728358062543,1.89018,2438.3,2438.2,1.22369]
[1728358062948,1.48,2438.3,2438.2,1.22369]
[1728358063142,1.89018,2438.3,2438.2,1.22369]
[1728358063337,1.48,2438.3,2438.2,1.22369]
[1728358063841,0.41017,2438.4,2438.3,0.41017]
[1728358066440,3.2078,2438.5,2438.2,0.8135]
[1728358066642,3.2078,2438.5,2438.4,0.41016]
[1728358067242,5.09794,2438.5,2438.4,4.51096]
[1728358067742,4.6878,2438.5,2438.4,4.51096]
[1728358068446,4.6878,2438.5,2438.4,0.41016]
[1728358069246,1.48,2438.5,2438.4,0.41016]
[1728358069441,1.48,2438.5,2438.4,4.51096]
[1728358069641,1.48,2438.5,2438.4,0.41016]
[1728358069951,1.89014,2438.5,2438.4,0.41016]
[1728358070148,2.27684,2438.5,2438.4,0.41016]
[1728358071438,1.8667,2438.5,2438.2,0.8135]
[1728358071644,1.8667,2438.5,2438.4,0.41016]
[1728358071645,2.27685,2438.5,2438.4,0.41016]
[1728358074053,1.8667,2438.5,2438.4,0.41016]
[1728358076047,2.27684,2438.5,2438.4,0.41016]
[1728358076351,1.8667,2438.5,2438.4,0.41016]
[1728358080156,0.799,2438.7,2438.6,0.41013]
[1728358080353,1.8901,2438.9,2438.8,0.41009]
[1728358080553,2.3173,2438.9,2438.8,0.41009]
[1728358080948,1.9072,2438.9,2438.8,0.41009]
[1728358083564,2.31728,2438.9,2438.7,0.4101]
[1728358083763,1.9072,2438.9,2438.6,0.41012]
[1728358084062,1.9072,2438.9,2438.5,0.41014]
[1728358084063,5.09792,2438.7,2438.5,0.41014]
[1728358084264,0.8175,2438.6,2438.5,0.41014]
[1728358084457,1.2374,2438.6,2438.5,0.41014]
[1728358085657,0.4199,2438.6,2438.5,0.41014]
[1728358086761,1.48,2438.8,2438.3,5.0888]
[1728358086976,1.48,2438.8,2438.7,0.41011]
[1728358087257,1.89009,2438.8,2438.7,0.41011]
[1728358087663,1.48,2438.8,2438.7,0.41011]
[1728358090166,1.48,2438.8,2438.6,0.3855]
[1728358090366,1.8901,2438.8,2438.7,0.41011]
[1728358092665,1.48,2438.8,2438.7,0.41011]
[1728358093065,1.89009,2438.8,2438.7,0.41011]
[1728358094168,1.89009,2438.8,2438.6,0.79562]
[1728358094368,1.2361,2438.9,2438.8,0.41009]
[1728358094964,1.64618,2438.9,2438.8,0.41009]
[1728358095266,1.64618,2438.9,2438.6,0.3855]
[1728358095463,1.89009,2438.8,2438.7,0.4101]
[1728358095963,1.48,2438.8,2438.7,0.4101]
[1728358097963,1.64619,2438.9,2438.7,0.4101]
[1728358098171,2.30999,2438.9,2438.7,0.4101]
[1728358099372,2.30999,2438.9,2438.7,0.41011]
[1728358099667,2.30999,2438.9,2438.7,0.4101]
[1728358100578,2.30999,2438.9,2438.6,0.3855]
[1728358100579,1.8999,2438.9,2438.6,0.3855]
[1728358100869,0.41007,2439.0,2438.8,0.41008]
[1728358101067,0.41007,2439.0,2438.9,1.2172]
[1728358102066,1.89007,2439.0,2438.9,0.8217]
[1728358102268,0.41007,2439.0,2438.9,0.4059]
[1728358102465,1.89007,2439.0,2438.9,0.4059]